fUSD/lending_fUSD_20240712
["ID","MTS","AMOUNT","RATE_DAILY","PERIOD"]
[331788516,1720764640492,-500.0,0.00013698,2]
[331788517,1720764640503,-797.47,0.00013698,2]
[331788518,1720764640514,-500.0,0.00013698,2]
[331788519,1720764640524,-500.0,0.00013698,2]
[331788520,1720764640535,-654.76,0.00013698,2]
[331788521,1720764640546,-740.37,0.00013698,2]
[331788522,1720764640557,-500.0,0.00013698,2]
[331788523,1720764640568,-500.0,0.00013698,2]
[331788524,1720764640579,-934.94,0.00013698,2]
[331788525,1720764640590,-500.0,0.00013698,2]
[331788526,1720764640600,-500.0,0.00013698,2]
[331788527,1720764640612,-500.0,0.00013698,2]
[331788528,1720764640623,-500.0,0.00013698,2]
[331788529,1720764640634,-500.0,0.00013698,2]
[331788530,1720764640645,-593.77,0.00013698,2]
[331788531,1720764640656,-1042.14,0.00013698,2]
[331788532,1720764640666,-500.0,0.00013698,2]
[331788533,1720764640676,-617.72494451,0.00013698,2]
[331788534,1720764640688,-1470.22,0.00013698,2]
[331788535,1720764640698,-500.0,0.00013698,2]
[331788536,1720764640708,-1247.18,0.00013698,2]
[331788537,1720764640719,-575.94,0.00013698,2]
[331788538,1720764640730,-500.0,0.00013698,2]
[331788539,1720764640741,-500.0,0.00013698,2]
[331788540,1720764640751,-500.0,0.00013698,2]
[331788541,1720764640761,-500.0,0.00013698,2]
[331788542,1720764640772,-1084.03,0.00013698,2]
[331788543,1720764640783,-500.0,0.00013698,2]
[331788544,1720764640793,-500.0,0.00013698,2]
[331788545,1720764640804,-500.0,0.00013698,2]
[331788546,1720764640814,-500.0,0.00013698,2]
[331788547,1720764640826,-719.76,0.00013698,2]
[331788548,1720764640836,-500.0,0.00013698,2]
[331788549,1720764640847,-1021.79,0.00013698,2]
[331788550,1720764640857,-508.01,0.00013698,2]
[331788551,1720764640868,-500.0,0.00013698,2]
[331788552,1720764640879,-500.0,0.00013698,2]
[331788553,1720764640889,-500.0,0.00013698,2]
[331788554,1720764640901,-839.78,0.00013698,2]
[331788555,1720764640911,-500.0,0.00013698,2]
[331788556,1720764640922,-500.0,0.00013698,2]
[331788557,1720764640932,-500.0,0.00013698,2]
[331788558,1720764640943,-500.0,0.00013698,2]
[331788559,1720764640954,-500.0,0.00013698,2]
[331788560,1720764640965,-500.0,0.00013698,2]
[331788561,1720764640975,-500.0,0.00013698,2]
[331788562,1720764640986,-730.17,0.00013698,2]
[331788563,1720764640996,-500.0,0.00013698,2]
[331788564,1720764641006,-500.0,0.00013698,2]
[331788565,1720764641017,-500.0,0.00013698,2]
[331788566,1720764641027,-500.0,0.00013698,2]
[331788567,1720764641037,-500.0,0.00013698,2]
[331788568,1720764641047,-500.0,0.00013698,2]
[331788569,1720764641058,-500.0,0.00013698,2]
[331788570,1720764641068,-500.0,0.00013698,2]
[331788571,1720764641078,-560.17,0.00013698,2]
[331788572,1720764641092,-500.0,0.00013698,2]
[331788573,1720764641102,-500.0,0.00013698,2]
[331788574,1720764641112,-585.06,0.00013698,2]
[331788575,1720764641122,-500.0,0.00013698,2]
[331788576,1720764641135,-1231.51,0.00013698,2]
[331788577,1720764641145,-500.0,0.00013698,2]
[331788578,1720764641155,-500.0,0.00013698,2]
[331788579,1720764641171,-500.0,0.00013698,2]
[331788580,1720764641183,-670.38,0.00013698,2]
[331788581,1720764641195,-500.0,0.00013698,2]
[331788582,1720764641206,-500.0,0.00013698,2]
[331788583,1720764641216,-500.0,0.00013698,2]
[331788584,1720764641227,-621.44,0.00013698,2]
[331788585,1720764641239,-500.0,0.00013698,2]
[331788586,1720764641251,-500.0,0.00013698,2]
[331788587,1720764641263,-500.0,0.00013698,2]
[331788588,1720764641273,-1134.18,0.00013698,2]
[331788589,1720764641283,-500.0,0.00013698,2]
[331788590,1720764641294,-744.95,0.00013698,2]
[331788591,1720764641304,-500.0,0.00013698,2]
[331788592,1720764641314,-576.94,0.00013698,2]
[331788593,1720764641326,-794.21,0.00013698,2]
[331788594,1720764641337,-500.0,0.00013698,2]
[331788595,1720764641348,-500.0,0.00013698,2]
[331788596,1720764641360,-500.0,0.00013698,2]
[331788597,1720764641371,-500.0,0.00013698,2]
[331788598,1720764641381,-626.06,0.00013698,2]
[331788599,1720764641393,-500.0,0.00013698,2]
[331788600,1720764641403,-500.0,0.00013698,2]
[331788601,1720764641416,-500.0,0.00013698,2]
[331788602,1720764641426,-500.0,0.00013698,2]
[331788603,1720764641438,-500.0,0.00013698,2]
[331788604,1720764641450,-816.02,0.00013698,2]
[331788605,1720764641460,-1350.67,0.00013698,2]
[331788606,1720764641471,-500.0,0.00013698,2]
[331788607,1720764641482,-500.0,0.00013698,2]
[331788608,1720764641493,-500.0,0.00013698,2]
[331788609,1720764641505,-500.0,0.00013698,2]
[331788610,1720764641515,-1733.71,0.00013698,2]
[331788611,1720764641526,-510.56,0.00013698,2]
[331788612,1720764641538,-874.52,0.00013698,2]
[331788613,1720764641549,-652.91,0.00013698,2]
[331788614,1720764641561,-769.5,0.00013698,2]
[331788615,1720764641573,-500.0,0.00013698,2]
[331788616,1720764641584,-500.0,0.00013698,2]
[331788617,1720764641595,-500.0,0.00013698,2]
[331788618,1720764641606,-987.79,0.00013698,2]
[331788619,1720764641619,-1128.89,0.00013698,2]
[331788620,1720764641630,-500.0,0.00013698,2]
[331788621,1720764641642,-500.0,0.00013698,2]
[331788622,1720764641653,-500.0,0.00013698,2]
[331788623,1720764641664,-500.0,0.00013698,2]
[331788624,1720764641674,-500.0,0.00013698,2]
[331788625,1720764641685,-425.3261513,0.00013698,2]
[331788626,1720764641695,-500.0,0.00013698,2]
[331788627,1720764641706,-500.0,0.00013698,2]
[331788628,1720764641716,-1060.14,0.00013698,2]
[331788629,1720764641726,-500.0,0.00013698,2]
[331788630,1720764641737,-500.0,0.00013698,2]
[331788631,1720764641749,-500.0,0.00013698,2]
[331788632,1720764641761,-500.0,0.00013698,2]
[331788633,1720764641772,-1370.12,0.00013698,2]
[331788634,1720764641783,-500.0,0.00013698,2]
[331788635,1720764641794,-500.0,0.00013698,2]
[331788636,1720764641806,-1578.77,0.00013698,2]
[331788637,1720764641818,-500.0,0.00013698,2]
[331788638,1720764641828,-500.0,0.00013698,2]
[331788639,1720764641839,-1249.01,0.00013698,2]
[331788640,1720764641848,-500.0,0.00013698,2]
[331788641,1720764641859,-472.74709781,0.00013698,2]
[331788642,1720764641871,-500.0,0.00013698,2]
[331788643,1720764641882,-500.0,0.00013698,2]
[331788644,1720764641892,-500.0,0.00013698,2]
[331788645,1720764641905,-500.0,0.00013698,2]
[331788646,1720764641916,-500.0,0.00013698,2]
[331788647,1720764641928,-529.87,0.00013698,2]
[331788648,1720764641940,-500.0,0.00013698,2]
[331788649,1720764641953,-500.0,0.00013698,2]
[331788650,1720764641963,-532.12,0.00013698,2]
[331788651,1720764641973,-500.0,0.00013698,2]
[331788652,1720764641983,-706.52,0.00013698,2]
[331788653,1720764641993,-500.0,0.00013698,2]
[331788654,1720764642003,-500.0,0.00013698,2]
[331788655,1720764642013,-500.0,0.00013698,2]
[331788656,1720764642024,-500.0,0.00013698,2]
[331788657,1720764642034,-500.0,0.00013698,2]
[331788658,1720764642044,-500.0,0.00013698,2]
[331788659,1720764642054,-500.0,0.00013698,2]
[331788660,1720764642065,-500.0,0.00013698,2]
[331788661,1720764642076,-500.0,0.00013698,2]
[331788662,1720764642088,-1152.74,0.00013698,2]
[331788663,1720764642102,-500.0,0.00013698,2]
[331788664,1720764642113,-583.43,0.00013698,2]
[331788665,1720764642125,-593.97,0.00013698,2]
[331788666,1720764642137,-500.0,0.00013698,2]
[331788667,1720764642148,-500.0,0.00013698,2]
[331788669,1720764642567,-500.0,0.00013698,2]
[331788672,1720764642599,-940.96,0.00013698,2]
[331788673,1720764642621,-500.0,0.00013698,2]
[331788674,1720764642631,-577.57932413,0.00013698,2]
[331788675,1720764642640,-500.0,0.00013698,2]
[331788676,1720764642651,-500.0,0.00013698,2]
[331788677,1720764642660,-500.0,0.00013698,2]
[331788678,1720764642670,-500.0,0.00013698,2]
[331788679,1720764642681,-500.0,0.00013698,2]
[331788680,1720764642691,-1153.64,0.00013698,2]
[331788681,1720764642701,-500.0,0.00013698,2]
[331788682,1720764642711,-921.41,0.00013698,2]
[331788683,1720764642721,-673.4,0.00013698,2]
[331788685,1720764642730,-500.0,0.00013698,2]
[331788687,1720764642739,-807.06,0.00013698,2]
[331788690,1720764642748,-500.0,0.00013698,2]
[331788692,1720764642758,-500.0,0.00013698,2]
[331788694,1720764642767,-561.05,0.00013698,2]
[331788696,1720764642776,-500.0,0.00013698,2]
[331788697,1720764642786,-500.0,0.00013698,2]
[331788698,1720764642795,-822.7,0.00013698,2]
[331788699,1720764642805,-500.0,0.00013698,2]
[331788700,1720764642816,-500.0,0.00013698,2]
[331788701,1720764642826,-500.0,0.00013698,2]
[331788702,1720764642836,-933.93,0.00013698,2]
[331788703,1720764642846,-500.0,0.00013698,2]
[331788704,1720764642858,-500.0,0.00013698,2]
[331788705,1720764642868,-699.41,0.00013698,2]
[331788706,1720764642878,-500.0,0.00013698,2]
[331788707,1720764642889,-500.0,0.00013698,2]
[331788708,1720764642898,-505.6,0.00013698,2]
[331788709,1720764642908,-500.0,0.00013698,2]
[331788710,1720764642920,-500.0,0.00013698,2]
[331788711,1720764642930,-500.0,0.00013698,2]
[331788712,1720764642941,-825.98,0.00013698,2]
[331788713,1720764642951,-500.0,0.00013698,2]
[331788714,1720764642960,-500.0,0.00013698,2]
[331788715,1720764642971,-804.97,0.00013698,2]
[331788716,1720764642980,-500.0,0.00013698,2]
[331788717,1720764642991,-601.52,0.00013698,2]
[331788718,1720764643001,-500.0,0.00013698,2]
[331788719,1720764643011,-851.88,0.00013698,2]
[331788720,1720764643022,-500.0,0.00013698,2]
[331788721,1720764643031,-500.0,0.00013698,2]
[331788722,1720764643042,-500.0,0.00013698,2]
[331788723,1720764643051,-500.0,0.00013698,2]
[331788724,1720764643063,-500.0,0.00013698,2]
[331788725,1720764643074,-500.0,0.00013698,2]
[331788726,1720764643085,-500.0,0.00013698,2]
[331788727,1720764643100,-500.0,0.00013698,2]
[331788728,1720764643112,-846.25,0.00013698,2]
[331788729,1720764643125,-777.18,0.00013698,2]
[331788730,1720764643136,-500.0,0.00013698,2]
[331788731,1720764643146,-500.0,0.00013698,2]
[331788732,1720764643155,-568.35,0.00013698,2]
[331788733,1720764643166,-500.0,0.00013698,2]
[331788734,1720764643177,-500.0,0.00013698,2]
[331788735,1720764643188,-500.0,0.00013698,2]
[331788736,1720764643199,-500.0,0.00013698,2]
[331788737,1720764643209,-500.0,0.00013698,2]
[331788738,1720764643220,-500.0,0.00013698,2]
[331788739,1720764643231,-500.0,0.00013698,2]
[331788741,1720764643240,-500.0,0.00013698,2]
[331788743,1720764643249,-500.0,0.00013698,2]
[331788744,1720764643262,-500.0,0.00013698,2]
[331788745,1720764643273,-795.34,0.00013698,2]
[331788746,1720764643284,-500.0,0.00013698,2]
[331788747,1720764643295,-500.0,0.00013698,2]
[331788748,1720764643306,-500.0,0.00013698,2]
[331788749,1720764643318,-500.0,0.00013698,2]
[331788750,1720764643328,-500.0,0.00013698,2]
[331788751,1720764643338,-500.0,0.00013698,2]
[331788752,1720764643350,-500.0,0.00013698,2]
[331788753,1720764643360,-500.0,0.00013698,2]
[331788754,1720764643371,-500.0,0.00013698,2]
[331788755,1720764643381,-500.0,0.00013698,2]
[331788756,1720764643391,-500.0,0.00013698,2]
[331788757,1720764643401,-584.01,0.00013698,2]
[331788758,1720764643412,-554.22,0.00013698,2]
[331788759,1720764643423,-500.0,0.00013698,2]
[331788760,1720764643432,-500.0,0.00013698,2]
[331788761,1720764643442,-678.29,0.00013698,2]
[331788762,1720764643452,-560.76,0.00013698,2]
[331788763,1720764643462,-500.0,0.00013698,2]
[331788764,1720764643471,-500.0,0.00013698,2]
[331788765,1720764643481,-500.0,0.00013698,2]
[331788766,1720764643491,-500.0,0.00013698,2]
[331788767,1720764643500,-500.0,0.00013698,2]
[331788768,1720764643510,-500.0,0.00013698,2]
[331788769,1720764643519,-500.0,0.00013698,2]
[331788770,1720764643529,-855.39,0.00013698,2]
[331788771,1720764643539,-500.0,0.00013698,2]
[331788772,1720764643548,-619.29,0.00013698,2]
[331788773,1720764643558,-500.0,0.00013698,2]
[331788774,1720764643568,-601.6,0.00013698,2]
[331788775,1720764643577,-500.0,0.00013698,2]
[331788776,1720764643587,-538.11,0.00013698,2]
[331788777,1720764643597,-500.0,0.00013698,2]
[331788778,1720764643606,-500.0,0.00013698,2]
[331788779,1720764643616,-541.72,0.00013698,2]
[331788780,1720764643627,-500.0,0.00013698,2]
[331788781,1720764643637,-500.0,0.00013698,2]
[331788782,1720764643646,-14.15834769,0.00013698,2]
[331788783,1720764643695,-485.84165231,0.00013698,2]
[331788784,1720764643705,-761.46,0.00013698,2]
[331788785,1720764643714,-500.0,0.00013698,2]
[331788786,1720764643724,-500.0,0.00013698,2]
[331788787,1720764643733,-500.0,0.00013698,2]
[331788788,1720764643742,-514.67,0.00013698,2]
[331788789,1720764643752,-500.0,0.00013698,2]
[331788790,1720764643761,-500.0,0.00013698,2]
[331788791,1720764643770,-500.0,0.00013698,2]
[331788792,1720764643779,-317.2,0.00013698,2]
[331788793,1720764643789,-508.84,0.00013698,2]
[331788794,1720764643799,-500.0,0.00013698,2]
[331788795,1720764643809,-146.1883477,0.00013698,2]
[331788796,1720764644650,-353.8116523,0.00013698,2]
[331788797,1720764644663,-517.39,0.00013698,2]
[331788798,1720764644674,-552.17,0.00013698,2]
[331788799,1720764644683,-500.0,0.00013698,2]
[331788800,1720764644693,-610.18,0.00013698,2]
[331788801,1720764644702,-500.0,0.00013698,2]
[331788802,1720764644712,-586.53,0.00013698,2]
[331788803,1720764644722,-500.0,0.00013698,2]
[331788804,1720764644733,-500.0,0.00013698,2]
[331788805,1720764644742,-524.36,0.00013698,2]
[331788806,1720764644752,-685.54,0.00013698,2]
[331788807,1720764644762,-780.24,0.00013698,2]
[331788808,1720764644771,-500.0,0.00013698,2]
[331788809,1720764644780,-196.23980214,0.00013698,2]
[331788810,1720764644829,-303.76019786,0.00013698,2]
[331788811,1720764644839,-500.0,0.00013698,2]
[331788812,1720764644848,-969.99,0.00013698,2]
[331788813,1720764644858,-500.0,0.00013698,2]
[331788814,1720764644867,-65.60011122,0.00013698,2]
[331788815,1720764645947,-434.39988878,0.00013698,2]
[331788816,1720764645957,-500.0,0.00013698,2]
[331788817,1720764645967,-500.0,0.00013698,2]
[331788818,1720764645977,-94.23519723,0.00013698,2]
[331788819,1720764645989,-405.76480277,0.00013698,2]
[331788820,1720764645998,-500.0,0.00013698,2]
[331788821,1720764646008,-500.0,0.00013698,2]
[331788822,1720764646018,-500.0,0.00013698,2]
[331788823,1720764646028,-500.0,0.00013698,2]
[331788824,1720764646038,-598.84,0.00013698,2]
[331788825,1720764646048,-500.0,0.00013698,2]
[331788826,1720764646057,-500.0,0.00013698,2]
[331788827,1720764646067,-500.0,0.00013698,2]
[331788828,1720764646077,-727.68,0.00013698,2]
[331788829,1720764646088,-500.0,0.00013698,2]
[331788830,1720764646099,-500.0,0.00013698,2]
[331788831,1720764646109,-527.31722657,0.00013698,2]
[331788832,1720764646118,-500.0,0.00013698,2]
[331788833,1720764646129,-500.0,0.00013698,2]
[331788834,1720764646139,-500.0,0.00013698,2]
[331788835,1720764646149,-525.75,0.00013698,2]
[331788836,1720764646159,-174.45,0.00013698,2]
[331788837,1720764646169,-500.0,0.00013698,2]
[331788838,1720764646179,-500.0,0.00013698,2]
[331788839,1720764646189,-500.0,0.00013698,2]
[331788840,1720764646199,-584.44,0.00013698,2]
[331788841,1720764646208,-500.0,0.00013698,2]
[331788842,1720764646218,-500.0,0.00013698,2]
[331788843,1720764646227,-820.88,0.00013698,2]
[331788844,1720764646237,-500.0,0.00013698,2]
[331788845,1720764646246,-611.65,0.00013698,2]
[331788846,1720764646256,-500.0,0.00013698,2]
[331788847,1720764646266,-192.03394236,0.00013698,2]
[331788848,1720764646276,-500.0,0.00013698,2]
[331788849,1720764646285,-775.73,0.00013698,2]
[331788850,1720764646295,-890.97,0.00013698,2]
[331788851,1720764646304,-500.0,0.00013698,2]
[331788852,1720764646314,-500.0,0.00013698,2]
[331788853,1720764646323,-780.41,0.00013698,2]
[331788854,1720764646333,-500.0,0.00013698,2]
[331788855,1720764646343,-965.72,0.00013698,2]
[331788856,1720764646352,-500.0,0.00013698,2]
[331788858,1720764646362,-500.0,0.00013698,2]
[331788859,1720764646372,-234.24154881,0.00013698,2]
[331788860,1720764646381,-500.0,0.00013698,2]
[331788861,1720764646391,-500.0,0.00013698,2]
[331788862,1720764646401,-584.22638031,0.00013698,2]
[331788863,1720764646411,-500.0,0.00013698,2]
[331788864,1720764646420,-500.0,0.00013698,2]
[331788865,1720764646430,-157.91358425,0.00013698,2]
[331788866,1720764646440,-500.0,0.00013698,2]
[331788867,1720764646450,-600.56,0.00013698,2]
[331788868,1720764646460,-607.99,0.00013698,2]
[331788869,1720764646469,-500.0,0.00013698,2]
[331788870,1720764646479,-500.0,0.00013698,2]
[331788871,1720764646488,-500.0,0.00013698,2]
[331788872,1720764646498,-500.0,0.00013698,2]
[331788873,1720764646508,-259.6,0.00013698,2]
[331788874,1720764646517,-500.0,0.00013698,2]
[331788875,1720764646527,-500.0,0.00013698,2]
[331788876,1720764646537,-500.0,0.00013698,2]
[331788877,1720764646546,-586.86,0.00013698,2]
[331788878,1720764646556,-500.0,0.00013698,2]
[331788879,1720764646565,-500.0,0.00013698,2]
[331788880,1720764646575,-500.0,0.00013698,2]
[331788881,1720764646585,-500.0,0.00013698,2]
[331788882,1720764646595,-500.0,0.00013698,2]
[331788883,1720764646604,-500.0,0.00013698,2]
[331788884,1720764646614,-500.0,0.00013698,2]
[331788885,1720764646624,-500.0,0.00013698,2]
[331788886,1720764646634,-1399.52,0.00013698,2]
[331788887,1720764646644,-500.0,0.00013698,2]
[331788888,1720764646654,-712.23,0.00013698,2]
[331788889,1720764646664,-500.0,0.00013698,2]
[331788890,1720764646675,-922.4,0.00013698,2]
[331788891,1720764646685,-500.0,0.00013698,2]
[331788892,1720764646695,-639.93,0.00013698,2]
[331788893,1720764646705,-500.0,0.00013698,2]
[331788894,1720764646714,-500.0,0.00013698,2]
[331788895,1720764646724,-500.0,0.00013698,2]
[331788896,1720764646734,-500.0,0.00013698,2]
[331788897,1720764646743,-500.0,0.00013698,2]
[331788898,1720764646753,-500.0,0.00013698,2]
[331788899,1720764646762,-866.64,0.00013698,2]
[331788900,1720764646772,-958.06,0.00013698,2]
[331788901,1720764646781,-453.86355039,0.00013698,2]
[331788902,1720764646791,-500.0,0.00013698,2]
[331788903,1720764646801,-500.0,0.00013698,2]
[331788904,1720764646811,-500.0,0.00013698,2]
[331788905,1720764646820,-645.46,0.00013698,2]
[331788906,1720764646830,-500.0,0.00013698,2]
[331788907,1720764646840,-500.0,0.00013698,2]
[331788908,1720764646850,-500.0,0.00013698,2]
[331788909,1720764646859,-500.0,0.00013698,2]
[331788910,1720764646869,-500.0,0.00013698,2]
[331788911,1720764646878,-500.0,0.00013698,2]
[331788912,1720764646890,-500.0,0.00013698,2]
[331788913,1720764646900,-500.0,0.00013698,2]
[331788914,1720764646910,-505.74,0.00013698,2]
[331788915,1720764646919,-500.0,0.00013698,2]
[331788916,1720764646929,-500.0,0.00013698,2]
[331788917,1720764646939,-500.0,0.00013698,2]
[331788918,1720764646948,-500.0,0.00013698,2]
[331788919,1720764646958,-500.0,0.00013698,2]
[331788920,1720764646967,-500.0,0.00013698,2]
[331788921,1720764646977,-500.0,0.00013698,2]
[331788922,1720764646987,-783.63,0.00013698,2]
[331788923,1720764646996,-627.55555595,0.00013698,2]
[331788924,1720764647007,-500.0,0.00013698,2]
[331788925,1720764647016,-471.29744752,0.00013698,2]
[331788926,1720764647026,-500.0,0.00013698,2]
[331788927,1720764647036,-500.0,0.00013698,2]
[331788928,1720764647046,-500.0,0.00013698,2]
[331788929,1720764647056,-500.0,0.00013698,2]
[331788930,1720764647066,-500.0,0.00013698,2]
[331788931,1720764647075,-500.0,0.00013698,2]
[331788932,1720764647085,-500.0,0.00013698,2]
[331788933,1720764647099,-766.15,0.00013698,2]
[331788934,1720764647109,-923.06,0.00013698,2]
[331788935,1720764647118,-500.0,0.00013698,2]
[331788936,1720764647128,-500.0,0.00013698,2]
[331788937,1720764647141,-500.0,0.00013698,2]
[331788938,1720764647151,-500.0,0.00013698,2]
[331788939,1720764647160,-899.35,0.00013698,2]
[331788940,1720764647172,-500.0,0.00013698,2]
[331788941,1720764647182,-814.03,0.00013698,2]
[331788942,1720764647192,-500.0,0.00013698,2]
[331788943,1720764647202,-500.0,0.00013698,2]
[331788944,1720764647211,-500.0,0.00013698,2]
[331788945,1720764647221,-500.0,0.00013698,2]
[331788946,1720764647231,-500.0,0.00013698,2]
[331788947,1720764647240,-500.0,0.00013698,2]
[331788948,1720764647250,-755.76,0.00013698,2]
[331788949,1720764647260,-500.0,0.00013698,2]
[331788950,1720764647270,-500.0,0.00013698,2]
[331788951,1720764647279,-500.0,0.00013698,2]
[331788952,1720764647289,-500.0,0.00013698,2]
[331788953,1720764647299,-1056.59,0.00013698,2]
[331788954,1720764647308,-500.0,0.00013698,2]
[331788955,1720764647318,-509.55,0.00013698,2]
[331788956,1720764647328,-568.37,0.00013698,2]
[331788957,1720764647338,-500.0,0.00013698,2]
[331788958,1720764647347,-500.0,0.00013698,2]
[331788959,1720764647357,-500.0,0.00013698,2]
[331788960,1720764647366,-858.0,0.00013698,2]
[331788961,1720764647375,-1348.73,0.00013698,2]
[331788962,1720764647386,-500.0,0.00013698,2]
[331788963,1720764647395,-620.2,0.00013698,2]
[331788964,1720764647405,-500.0,0.00013698,2]
[331788965,1720764647415,-500.0,0.00013698,2]
[331788966,1720764647424,-500.0,0.00013698,2]
[331788967,1720764647435,-500.0,0.00013698,2]
[331788968,1720764647446,-500.0,0.00013698,2]
[331788969,1720764647457,-500.0,0.00013698,2]
[331788970,1720764647468,-1402.48,0.00013698,2]
[331788971,1720764647478,-470.39701726,0.00013698,2]
[331788972,1720764647487,-500.0,0.00013698,2]
[331788973,1720764647499,-636.43507075,0.00013698,2]
[331788974,1720764647511,-500.0,0.00013698,2]
[331788975,1720764647520,-500.0,0.00013698,2]
[331788976,1720764647531,-500.0,0.00013698,2]
[331788977,1720764647541,-500.0,0.00013698,2]
[331788978,1720764647551,-697.96,0.00013698,2]
[331788979,1720764647561,-500.0,0.00013698,2]
[331788980,1720764647571,-500.0,0.00013698,2]
[331788981,1720764647581,-765.79,0.00013698,2]
[331788982,1720764647590,-500.0,0.00013698,2]
[331788983,1720764647600,-595.75,0.00013698,2]
[331788984,1720764647610,-510.81,0.00013698,2]
[331788985,1720764647619,-500.0,0.00013698,2]
[331788986,1720764647628,-747.79,0.00013698,2]
[331788987,1720764647639,-500.0,0.00013698,2]
[331788988,1720764647649,-500.0,0.00013698,2]
[331788989,1720764647659,-500.0,0.00013698,2]
[331788990,1720764647669,-738.45,0.00013698,2]
[331788991,1720764647678,-500.0,0.00013698,2]
[331788992,1720764647688,-500.0,0.00013698,2]
[331788993,1720764647698,-500.0,0.00013698,2]
[331788994,1720764647708,-500.0,0.00013698,2]
[331788995,1720764647718,-500.0,0.00013698,2]
[331788996,1720764647728,-500.0,0.00013698,2]
[331788997,1720764647738,-770.12,0.00013698,2]
[331788998,1720764647748,-879.73,0.00013698,2]
[331788999,1720764647758,-500.0,0.00013698,2]
[331789000,1720764647768,-500.0,0.00013698,2]
[331789001,1720764647778,-739.47,0.00013698,2]
[331789002,1720764647787,-821.95,0.00013698,2]
[331789003,1720764647797,-500.0,0.00013698,2]
[331789004,1720764647807,-500.0,0.00013698,2]
[331789005,1720764647817,-500.0,0.00013698,2]
[331789006,1720764647827,-500.0,0.00013698,2]
[331789007,1720764647836,-500.0,0.00013698,2]
[331789008,1720764647846,-500.0,0.00013698,2]
[331789009,1720764647855,-900.06,0.00013698,2]
[331789010,1720764647865,-500.0,0.00013698,2]
[331789011,1720764647875,-604.94,0.00013698,2]
[331789012,1720764647886,-500.0,0.00013698,2]
[331789013,1720764647896,-267.1,0.00013698,2]
[331789014,1720764647905,-500.0,0.00013698,2]
[331789015,1720764647917,-197.83882656,0.00013698,2]
[331789016,1720764647927,-500.0,0.00013698,2]
[331789017,1720764647937,-500.0,0.00013698,2]
[331789018,1720764647946,-657.21,0.00013698,2]
[331789019,1720764647957,-500.0,0.00013698,2]
[331789020,1720764647967,-500.0,0.00013698,2]
[331789021,1720764647978,-500.0,0.00013698,2]
[331789022,1720764647988,-500.0,0.00013698,2]
[331789023,1720764647998,-500.0,0.00013698,2]
[331789024,1720764648008,-500.0,0.00013698,2]
[331789025,1720764648017,-500.0,0.00013698,2]
[331789026,1720764648027,-884.03,0.00013698,2]
[331789027,1720764648037,-500.0,0.00013698,2]
[331789028,1720764648101,-536.27,0.00013698,2]